[Event "*** Titled Tuesday Blitz"]
[Site "Chess.com"]
[Date "2018.08.07"]
[Round "1"]
[White "michaelk123"]
[Black "gmjlh"]
[Result "0-1"]
[WhiteElo "2376"]
[BlackElo "2766"]
[TimeControl "180+2"]
[EndTime "13:08:23 PDT"]
[Termination "gmjlh won by checkmate"]

1. e4 {[%clk 0:02:59.9]} 1... c6 {[%clk 0:02:59.2]} 2. Nf3 {[%clk 0:02:57.2]}
2... d5 {[%clk 0:00:52.8]} 3. Nc3 {[%clk 0:02:11.7]} 3... dxe4 {[%clk
0:00:53.5]} 4. Nxe4 {[%clk 0:02:11.6]} 4... Nf6 {[%clk 0:00:55.4]} 5. Qe2 {[%clk
0:02:10.4]} 5... Nxe4 {[%clk 0:00:55.7]} 6. Qxe4 {[%clk 0:02:11.2]} 6... Qa5
{[%clk 0:00:57.6]} 7. Bc4 {[%clk 0:01:55.1]} 7... Bf5 {[%clk 0:00:55.9]} 8. Qf4
{[%clk 0:01:47.7]} 8... e6 {[%clk 0:00:53.1]} 9. Bb3 {[%clk 0:01:43.1]} 9... Nd7
{[%clk 0:00:46.7]} 10. O-O {[%clk 0:01:38.9]} 10... Nc5 {[%clk 0:00:43.5]} 11.
Nd4 {[%clk 0:01:13]} 11... Nxb3 {[%clk 0:00:44.2]} 12. Nxb3 {[%clk 0:01:13.8]}
12... Qb4 {[%clk 0:00:41]} 13. Qxb4 {[%clk 0:01:10.5]} 13... Bxb4 {[%clk
0:00:42.9]} 14. c3 {[%clk 0:01:09.4]} 14... Bd6 {[%clk 0:00:41.7]} 15. d4 {[%clk
0:01:09.4]} 15... b6 {[%clk 0:00:40.6]} 16. Re1 {[%clk 0:01:10]} 16... Kd7
{[%clk 0:00:40.6]} 17. a4 {[%clk 0:01:06.5]} 17... a5 {[%clk 0:00:40.8]} 18. Nd2
{[%clk 0:01:06.6]} 18... f6 {[%clk 0:00:37]} 19. Nc4 {[%clk 0:01:07.1]} 19...
Bc7 {[%clk 0:00:38]} 20. Be3 {[%clk 0:01:04.9]} 20... Rab8 {[%clk 0:00:34.8]}
21. f3 {[%clk 0:01:05.1]} 21... g5 {[%clk 0:00:34.9]} 22. Kf2 {[%clk 0:01:02.9]}
22... h5 {[%clk 0:00:36]} 23. g3 {[%clk 0:01:02.3]} 23... Bg6 {[%clk 0:00:34.3]}
24. f4 {[%clk 0:01:01]} 24... Bd3 {[%clk 0:00:32]} 25. Nd2 {[%clk 0:00:59.2]}
25... g4 {[%clk 0:00:33]} 26. h4 {[%clk 0:00:52.6]} 26... gxh3 {[%clk
0:00:33.8]} 27. Rh1 {[%clk 0:00:48.7]} 27... Bf5 {[%clk 0:00:34.5]} 28. Nf3
{[%clk 0:00:49.4]} 28... b5 {[%clk 0:00:35.4]} 29. Nh4 {[%clk 0:00:47.1]} 29...
Bg4 {[%clk 0:00:34.7]} 30. axb5 {[%clk 0:00:42.7]} 30... Rxb5 {[%clk 0:00:34.3]}
31. Bc1 {[%clk 0:00:39.3]} 31... Rhb8 {[%clk 0:00:34.6]} 32. Nf3 {[%clk
0:00:29]} 32... Bb6 {[%clk 0:00:32.2]} 33. Rd1 {[%clk 0:00:16.1]} 33... Ke8
{[%clk 0:00:29.4]} 34. Re1 {[%clk 0:00:16.4]} 34... Kf7 {[%clk 0:00:26.8]} 35.
Ra2 {[%clk 0:00:12.3]} 35... c5 {[%clk 0:00:26.6]} 36. c4 {[%clk 0:00:13.5]}
36... Rb4 {[%clk 0:00:24.6]} 37. Bd2 {[%clk 0:00:13.3]} 37... Rxc4 {[%clk
0:00:24.4]} 38. d5 {[%clk 0:00:09.8]} 38... exd5 {[%clk 0:00:24.5]} 39. Nh4
{[%clk 0:00:10.5]} 39... Rc2 {[%clk 0:00:24.6]} 40. Ke3 {[%clk 0:00:08.2]} 40...
c4# {[%clk 0:00:24.6]} 0-1

[Event "*** Titled Tuesday Blitz"]
[Site "Chess.com"]
[Date "2018.08.07"]
[Round "1"]
[White "maciek_92"]
[Black "thegreendog"]
[Result "1-0"]
[WhiteElo "2718"]
[BlackElo "2327"]
[TimeControl "180+2"]
[EndTime "13:08:32 PDT"]
[Termination "maciek_92 won by resignation"]

1. c4 {[%clk 0:03:00.5]} 1... Nf6 {[%clk 0:02:58.4]} 2. Nc3 {[%clk 0:03:01.3]}
2... e5 {[%clk 0:02:59]} 3. g3 {[%clk 0:03:02.4]} 3... Nc6 {[%clk 0:02:58.9]} 4.
Bg2 {[%clk 0:03:03.6]} 4... Bb4 {[%clk 0:02:58.7]} 5. e4 {[%clk 0:03:02.6]} 5...
O-O {[%clk 0:02:57.7]} 6. Nge2 {[%clk 0:03:03.5]} 6... a5 {[%clk 0:02:58.8]} 7.
O-O {[%clk 0:03:02.6]} 7... d6 {[%clk 0:02:59.3]} 8. d3 {[%clk 0:03:02.1]} 8...
Nd4 {[%clk 0:02:58.6]} 9. Nxd4 {[%clk 0:03:02.3]} 9... exd4 {[%clk 0:02:59.3]}
10. Ne2 {[%clk 0:03:03.7]} 10... Bc5 {[%clk 0:02:58.6]} 11. h3 {[%clk
0:03:01.5]} 11... Bd7 {[%clk 0:02:58.5]} 12. b3 {[%clk 0:03:01.5]} 12... Bb6
{[%clk 0:02:43.3]} 13. Bb2 {[%clk 0:02:57.5]} 13... c5 {[%clk 0:02:43.7]} 14. a4
{[%clk 0:02:58.7]} 14... Qc8 {[%clk 0:02:43.4]} 15. Kh2 {[%clk 0:02:58.1]} 15...
Ne8 {[%clk 0:02:39]} 16. Bc1 {[%clk 0:02:46.4]} 16... f5 {[%clk 0:02:39.3]} 17.
exf5 {[%clk 0:02:36.9]} 17... Bxf5 {[%clk 0:02:39.9]} 18. Nf4 {[%clk 0:02:36.8]}
18... Nf6 {[%clk 0:02:39.9]} 19. Ra2 {[%clk 0:02:30.9]} 19... Bd7 {[%clk
0:02:37.7]} 20. Re2 {[%clk 0:02:26.5]} 20... Bc6 {[%clk 0:02:37.8]} 21. Rfe1
{[%clk 0:02:20.1]} 21... Bxg2 {[%clk 0:02:28.6]} 22. Nxg2 {[%clk 0:02:19.8]}
22... Qc6 {[%clk 0:02:26.8]} 23. Re6 {[%clk 0:02:17.4]} 23... Rae8 {[%clk
0:02:27.3]} 24. Nf4 {[%clk 0:02:16.8]} 24... Rxe6 {[%clk 0:02:26.2]} 25. Rxe6
{[%clk 0:02:18.7]} 25... Qd7 {[%clk 0:02:18.6]} 26. Qe2 {[%clk 0:02:19.5]} 26...
Bd8 {[%clk 0:02:15.1]} 27. Bd2 {[%clk 0:02:15.6]} 27... Re8 {[%clk 0:01:45.6]}
28. Rxe8+ {[%clk 0:02:15.8]} 28... Qxe8 {[%clk 0:01:47.5]} 29. Qxe8+ {[%clk
0:02:16.6]} 29... Nxe8 {[%clk 0:01:49.4]} 30. Nd5 {[%clk 0:02:14.1]} 30... Kf7
{[%clk 0:01:47.7]} 31. Kg2 {[%clk 0:02:12.3]} 31... Nf6 {[%clk 0:01:48.9]} 32.
Nxf6 {[%clk 0:01:55.7]} 32... Kxf6 {[%clk 0:01:48.8]} 33. Kf3 {[%clk 0:01:56.4]}
33... Kf5 {[%clk 0:01:44.9]} 34. g4+ {[%clk 0:01:55.6]} 34... Ke6 {[%clk
0:01:45.9]} 35. Ke4 {[%clk 0:01:55.7]} 35... g5 {[%clk 0:01:28.2]} 36. f3 {[%clk
0:01:44.1]} 36... b6 {[%clk 0:01:22.5]} 37. f4 {[%clk 0:01:44.4]} 37... gxf4
{[%clk 0:01:12.5]} 38. Bxf4 {[%clk 0:01:46.3]} 38... Bh4 {[%clk 0:01:13.5]} 39.
Bh6 {[%clk 0:01:34.3]} 39... Bf6 {[%clk 0:01:03.2]} 40. g5 {[%clk 0:01:30]}
40... Be5 {[%clk 0:00:53.2]} 41. h4 {[%clk 0:01:28.9]} 41... Kf7 {[%clk
0:00:46.9]} 42. h5 {[%clk 0:01:27.6]} 42... Ke6 {[%clk 0:00:33.5]} 43. Bf8
{[%clk 0:01:08.3]} 43... Kf7 {[%clk 0:00:32.6]} 44. Bh6 {[%clk 0:01:08]} 44...
Ke6 {[%clk 0:00:33.6]} 45. g6 {[%clk 0:01:09.4]} 45... hxg6 {[%clk 0:00:17.1]}
46. hxg6 {[%clk 0:01:11.3]} 46... Kf6 {[%clk 0:00:18.6]} 47. g7 {[%clk
0:01:11.1]} 47... Kf7 {[%clk 0:00:19.4]} 48. Kd5 {[%clk 0:01:12.2]} 48... Bg3
{[%clk 0:00:18.6]} 49. Kc6 {[%clk 0:01:09.4]} 49... Be1 {[%clk 0:00:07.6]} 50.
Kxb6 {[%clk 0:01:07.6]} 50... Bg3 {[%clk 0:00:06.3]} 51. Kxa5 {[%clk 0:01:08.2]}
51... Be1+ {[%clk 0:00:07.4]} 52. Kb6 {[%clk 0:01:09.1]} 1-0

[Event "*** Titled Tuesday Blitz"]
[Site "Chess.com"]
[Date "2018.08.07"]
[Round "1"]
[White "Quiet_Desperation"]
[Black "AdrianaNikolova"]
[Result "1-0"]
[WhiteElo "1897"]
[BlackElo "2414"]
[TimeControl "180+2"]
[EndTime "13:08:32 PDT"]
[Termination "Quiet_Desperation won by checkmate"]

1. e4 {[%clk 0:02:53.8]} 1... c5 {[%clk 0:02:59.7]} 2. Nf3 {[%clk 0:02:54.6]}
2... d6 {[%clk 0:03:00.2]} 3. d4 {[%clk 0:02:43.7]} 3... cxd4 {[%clk 0:03:02.1]}
4. Nxd4 {[%clk 0:02:45]} 4... Nf6 {[%clk 0:03:02.4]} 5. Nc3 {[%clk 0:02:46.5]}
5... Nc6 {[%clk 0:03:02.3]} 6. Bg5 {[%clk 0:02:46.4]} 6... e6 {[%clk 0:03:01.8]}
7. Bc4 {[%clk 0:02:47.3]} 7... a6 {[%clk 0:03:01.1]} 8. Qd2 {[%clk 0:02:47.1]}
8... h6 {[%clk 0:03:02.1]} 9. Be3 {[%clk 0:02:40.8]} 9... Bd7 {[%clk 0:03:01.5]}
10. f3 {[%clk 0:02:41]} 10... Rc8 {[%clk 0:02:58.1]} 11. Bb3 {[%clk 0:02:36.2]}
11... Ne5 {[%clk 0:02:57.8]} 12. O-O-O {[%clk 0:02:37]} 12... Nc4 {[%clk
0:02:57.9]} 13. Bxc4 {[%clk 0:02:38.3]} 13... Rxc4 {[%clk 0:02:59.8]} 14. Nde2
{[%clk 0:02:38.4]} 14... Qa5 {[%clk 0:02:56.2]} 15. Kb1 {[%clk 0:02:39.4]} 15...
Be7 {[%clk 0:02:56]} 16. g4 {[%clk 0:02:40.4]} 16... b5 {[%clk 0:02:50.8]} 17.
Nc1 {[%clk 0:02:36.3]} 17... b4 {[%clk 0:02:48.7]} 18. N3e2 {[%clk 0:02:36.7]}
18... O-O {[%clk 0:02:25.8]} 19. h4 {[%clk 0:02:31.7]} 19... Rfc8 {[%clk
0:02:23.1]} 20. Nb3 {[%clk 0:02:32.9]} 20... Qc7 {[%clk 0:02:17.6]} 21. Rc1
{[%clk 0:02:30.9]} 21... a5 {[%clk 0:02:18]} 22. g5 {[%clk 0:02:31.6]} 22... Nh5
{[%clk 0:02:08]} 23. gxh6 {[%clk 0:02:31.4]} 23... g6 {[%clk 0:02:09.1]} 24. Bg5
{[%clk 0:02:22.7]} 24... Bf8 {[%clk 0:01:58.9]} 25. Rhg1 {[%clk 0:02:07.6]}
25... a4 {[%clk 0:01:58.8]} 26. Nbd4 {[%clk 0:02:08.4]} 26... Kh7 {[%clk
0:01:53.7]} 27. Ng3 {[%clk 0:02:06.4]} 27... Nxg3 {[%clk 0:01:29.9]} 28. Rxg3
{[%clk 0:01:57.9]} 28... d5 {[%clk 0:01:31]} 29. Rgg1 {[%clk 0:01:47.2]} 29...
dxe4 {[%clk 0:01:29.5]} 30. h5 {[%clk 0:01:46.2]} 30... Qe5 {[%clk 0:01:08.1]}
31. hxg6+ {[%clk 0:01:45.8]} 31... fxg6 {[%clk 0:01:08.7]} 32. Be3 {[%clk
0:01:43.7]} 32... Be8 {[%clk 0:00:58]} 33. Rg5 {[%clk 0:01:18.6]} 33... Qf6
{[%clk 0:00:58.5]} 34. fxe4 {[%clk 0:01:02.8]} 34... e5 {[%clk 0:00:31.5]} 35.
Ne2 {[%clk 0:00:43.4]} 35... Rxe4 {[%clk 0:00:32.4]} 36. Ng3 {[%clk 0:00:38]}
36... Rh4 {[%clk 0:00:26.2]} 37. Rf1 {[%clk 0:00:37.3]} 37... Qd6 {[%clk
0:00:21.4]} 38. Qf2 {[%clk 0:00:28.3]} 38... Bxh6 {[%clk 0:00:19.4]} 39. Ne4
{[%clk 0:00:28.2]} 39... Rxe4 {[%clk 0:00:17.7]} 40. Rh1 {[%clk 0:00:27.3]}
40... Bc6 {[%clk 0:00:09.6]} 41. Qf7+ {[%clk 0:00:23.5]} 41... Kh8 {[%clk
0:00:09.1]} 42. Rxh6# {[%clk 0:00:22.9]} 1-0

[Event "*** Titled Tuesday Blitz"]
[Site "Chess.com"]
[Date "2018.08.07"]
[Round "1"]
[White "pultineviciuspaulius"]
[Black "rikyshi"]
[Result "1-0"]
[WhiteElo "2570"]
[BlackElo "2222"]
[TimeControl "180+2"]
[EndTime "13:08:34 PDT"]
[Termination "pultineviciuspaulius won by resignation"]

1. d4 {[%clk 0:02:56.2]} 1... Nf6 {[%clk 0:02:59.7]} 2. c4 {[%clk 0:02:54.2]}
2... e6 {[%clk 0:03:00.3]} 3. Nf3 {[%clk 0:02:54.2]} 3... Bb4+ {[%clk
0:02:58.7]} 4. Bd2 {[%clk 0:02:54.5]} 4... Qe7 {[%clk 0:02:59.2]} 5. Qc2 {[%clk
0:02:55.4]} 5... O-O {[%clk 0:02:41.4]} 6. Nc3 {[%clk 0:02:55.8]} 6... d5 {[%clk
0:02:33.4]} 7. e3 {[%clk 0:02:54.2]} 7... c6 {[%clk 0:02:30.8]} 8. Bd3 {[%clk
0:02:53.4]} 8... Nbd7 {[%clk 0:02:27.7]} 9. O-O {[%clk 0:02:51.9]} 9... dxc4
{[%clk 0:02:12.7]} 10. Bxc4 {[%clk 0:02:53.8]} 10... e5 {[%clk 0:02:07]} 11.
dxe5 {[%clk 0:02:48.4]} 11... Nxe5 {[%clk 0:02:07]} 12. Be2 {[%clk 0:02:49.8]}
12... Nxf3+ {[%clk 0:01:34.5]} 13. Bxf3 {[%clk 0:02:48.6]} 13... Be6 {[%clk
0:01:36.4]} 14. a3 {[%clk 0:02:47.3]} 14... Ba5 {[%clk 0:01:37.7]} 15. Nd5
{[%clk 0:02:42.6]} 15... Bxd5 {[%clk 0:01:27.9]} 16. Bxa5 {[%clk 0:02:43.7]}
16... Bxf3 {[%clk 0:01:27]} 17. gxf3 {[%clk 0:02:45.6]} 17... Nd5 {[%clk
0:01:24.2]} 18. Kh1 {[%clk 0:02:44.2]} 18... Qf6 {[%clk 0:00:54.9]} 19. f4
{[%clk 0:02:29]} 19... Rfe8 {[%clk 0:00:53.5]} 20. Rg1 {[%clk 0:02:29]} 20... b6
{[%clk 0:00:50.5]} 21. Bd2 {[%clk 0:02:29.1]} 21... Rac8 {[%clk 0:00:50.8]} 22.
Rg3 {[%clk 0:02:29.6]} 22... g6 {[%clk 0:00:46.7]} 23. Rag1 {[%clk 0:02:27.1]}
23... Qe6 {[%clk 0:00:36.7]} 24. f5 {[%clk 0:02:27.8]} 24... Qe4+ {[%clk
0:00:35.9]} 25. Qxe4 {[%clk 0:02:29.4]} 25... Rxe4 {[%clk 0:00:37.8]} 26. fxg6
{[%clk 0:02:29.9]} 26... fxg6 {[%clk 0:00:37]} 27. Rg4 {[%clk 0:02:31.8]} 27...
Nf6 {[%clk 0:00:29.2]} 28. Rg5 {[%clk 0:02:21]} 28... c5 {[%clk 0:00:29.1]} 29.
Bc3 {[%clk 0:02:21.5]} 29... Kf7 {[%clk 0:00:28.1]} 30. Rd1 {[%clk 0:02:22]}
30... Rce8 {[%clk 0:00:26.2]} 31. Rd6 {[%clk 0:02:21.8]} 31... R8e6 {[%clk
0:00:26.2]} 32. Rd3 {[%clk 0:02:19.7]} 32... Re7 {[%clk 0:00:22]} 33. Kg2 {[%clk
0:02:21.1]} 33... Rg4+ {[%clk 0:00:19.3]} 34. Rxg4 {[%clk 0:02:22]} 34... Nxg4
{[%clk 0:00:21.2]} 35. h3 {[%clk 0:02:21.4]} 35... Ne5 {[%clk 0:00:21.8]} 36.
Rd5 {[%clk 0:02:19.4]} 36... Nc6 {[%clk 0:00:21.5]} 37. Kf3 {[%clk 0:02:20.6]}
37... Ke6 {[%clk 0:00:21.5]} 38. e4 {[%clk 0:02:21.4]} 38... Rd7 {[%clk
0:00:19.6]} 39. Rg5 {[%clk 0:02:18.7]} 39... Rd3+ {[%clk 0:00:19.8]} 40. Kg2
{[%clk 0:02:17.3]} 40... Nd4 {[%clk 0:00:16.8]} 41. h4 {[%clk 0:02:18.4]} 41...
Kf6 {[%clk 0:00:15.9]} 42. Rg4 {[%clk 0:02:17.3]} 42... Ke5 {[%clk 0:00:15.8]}
43. f3 {[%clk 0:02:15.3]} 43... Kd6 {[%clk 0:00:15]} 44. Rf4 {[%clk 0:02:11.7]}
44... Ke7 {[%clk 0:00:13.9]} 45. Kf2 {[%clk 0:02:07.1]} 45... Ne6 {[%clk
0:00:14]} 46. Rg4 {[%clk 0:02:07.8]} 46... b5 {[%clk 0:00:14.8]} 47. h5 {[%clk
0:02:08.4]} 47... Kf7 {[%clk 0:00:15]} 48. hxg6+ {[%clk 0:02:08.9]} 48... hxg6
{[%clk 0:00:16.9]} 49. Rh4 {[%clk 0:02:10.6]} 49... Rd7 {[%clk 0:00:09.6]} 50.
Rh7+ {[%clk 0:02:09.8]} 50... Ke8 {[%clk 0:00:10.6]} 51. Rh8+ {[%clk 0:02:10.2]}
51... Kf7 {[%clk 0:00:11.4]} 52. Rh7+ {[%clk 0:02:11.9]} 52... Ke8 {[%clk
0:00:12.5]} 53. Rxd7 {[%clk 0:02:13.8]} 53... Kxd7 {[%clk 0:00:13.6]} 54. Kg3
{[%clk 0:02:15.4]} 54... Kc6 {[%clk 0:00:07.7]} 55. Kg4 {[%clk 0:02:16]} 55...
Kd6 {[%clk 0:00:03.6]} 56. f4 {[%clk 0:02:17.5]} 56... Nd4 {[%clk 0:00:03.1]}
57. Bxd4 {[%clk 0:02:16.4]} 57... cxd4 {[%clk 0:00:04.1]} 58. Kf3 {[%clk
0:02:17.7]} 58... Ke6 {[%clk 0:00:02.6]} 59. Ke2 {[%clk 0:02:18.2]} 59... Kf6
{[%clk 0:00:02.7]} 60. Kd3 {[%clk 0:02:19.4]} 60... g5 {[%clk 0:00:03.3]} 61.
fxg5+ {[%clk 0:02:20.7]} 61... Kxg5 {[%clk 0:00:05.2]} 62. Kxd4 {[%clk 0:02:22]}
62... Kf4 {[%clk 0:00:02.9]} 63. Kc5 {[%clk 0:02:23.7]} 63... a6 {[%clk
0:00:02.6]} 64. Kb6 {[%clk 0:02:24.7]} 64... Kxe4 {[%clk 0:00:03.8]} 65. Kxa6
{[%clk 0:02:26.2]} 65... Kd4 {[%clk 0:00:05.1]} 66. Kxb5 {[%clk 0:02:27.6]}
66... Kd3 {[%clk 0:00:06.7]} 67. a4 {[%clk 0:02:29.5]} 67... Kc2 {[%clk
0:00:08.6]} 68. a5 {[%clk 0:02:31.4]} 68... Kb3 {[%clk 0:00:10.5]} 69. a6 {[%clk
0:02:33.3]} 69... Kxb2 {[%clk 0:00:12.2]} 70. a7 {[%clk 0:02:35.2]} 1-0

[Event "*** Titled Tuesday Blitz"]
[Site "Chess.com"]
[Date "2018.08.07"]
[Round "1"]
[White "FMchesstrainer"]
[Black "KenanGarayev"]
[Result "1-0"]
[WhiteElo "2350"]
[BlackElo "2702"]
[TimeControl "180+2"]
[EndTime "13:08:39 PDT"]
[Termination "FMchesstrainer won by resignation"]

1. d4 {[%clk 0:03:01.8]} 1... Nf6 {[%clk 0:03:00.2]} 2. Bg5 {[%clk 0:03:02.7]}
2... c5 {[%clk 0:02:55.7]} 3. d5 {[%clk 0:03:03.5]} 3... Qb6 {[%clk 0:02:55.3]}
4. Nc3 {[%clk 0:03:04.1]} 4... g6 {[%clk 0:02:52.6]} 5. Qd2 {[%clk 0:03:02.5]}
5... Bg7 {[%clk 0:02:53.3]} 6. O-O-O {[%clk 0:03:00.5]} 6... Ne4 {[%clk
0:02:44.3]} 7. Qe3 {[%clk 0:03:01.5]} 7... Nxg5 {[%clk 0:02:39.9]} 8. Qxg5
{[%clk 0:03:01.7]} 8... Bxc3 {[%clk 0:02:41.8]} 9. bxc3 {[%clk 0:03:02.2]} 9...
Qa5 {[%clk 0:02:30.4]} 10. Kb2 {[%clk 0:03:00.5]} 10... d6 {[%clk 0:02:25.6]}
11. e4 {[%clk 0:02:59.3]} 11... b5 {[%clk 0:02:21.4]} 12. e5 {[%clk 0:02:58.2]}
12... dxe5 {[%clk 0:02:14.7]} 13. Qxe5 {[%clk 0:02:58]} 13... f6 {[%clk
0:02:09]} 14. Qe3 {[%clk 0:02:54.7]} 14... Nd7 {[%clk 0:02:05.6]} 15. Nf3 {[%clk
0:02:49.4]} 15... Bb7 {[%clk 0:01:49]} 16. h4 {[%clk 0:02:44.8]} 16... O-O-O
{[%clk 0:01:48.3]} 17. Qxe7 {[%clk 0:02:33.9]} 17... Nb6 {[%clk 0:01:22.6]} 18.
Qxc5+ {[%clk 0:02:31.8]} 18... Kb8 {[%clk 0:01:23]} 19. Qb4 {[%clk 0:02:18.2]}
19... Na4+ {[%clk 0:01:19.3]} 20. Ka1 {[%clk 0:02:13.9]} 20... Qc7 {[%clk
0:01:16.4]} 21. c4 {[%clk 0:02:06.6]} 21... Nb6 {[%clk 0:01:14.6]} 22. Qxb5
{[%clk 0:02:04.9]} 22... Rhe8 {[%clk 0:01:15.3]} 23. Bd3 {[%clk 0:02:03.9]}
23... Nd7 {[%clk 0:01:15.6]} 24. Rb1 {[%clk 0:02:01.7]} 24... Nc5 {[%clk
0:01:16.7]} 25. Rhe1 {[%clk 0:02:00.8]} 25... Rf8 {[%clk 0:01:14.1]} 26. Re3
{[%clk 0:01:53.1]} 26... Rd6 {[%clk 0:01:14]} 27. Rbe1 {[%clk 0:01:51.6]} 27...
a6 {[%clk 0:01:14.4]} 28. Re8+ {[%clk 0:01:51.8]} 28... Ka7 {[%clk 0:01:14.5]}
29. Qb2 {[%clk 0:01:47.4]} 29... Rb6 {[%clk 0:01:13.5]} 30. Qd4 {[%clk
0:01:46.9]} 30... Rxe8 {[%clk 0:01:12.9]} 31. Rxe8 {[%clk 0:01:47]} 31... Rb4
{[%clk 0:01:12.4]} 32. c3 {[%clk 0:01:31.6]} 32... Ra4 {[%clk 0:01:09.4]} 33.
Re2 {[%clk 0:01:27.6]} 33... Qa5 {[%clk 0:01:03.7]} 34. d6 {[%clk 0:01:23.4]}
34... Kb8 {[%clk 0:01:00.6]} 35. Kb1 {[%clk 0:00:53.8]} 35... Bc6 {[%clk
0:00:58.2]} 36. Rb2+ {[%clk 0:00:44.9]} 36... Ka8 {[%clk 0:00:56.4]} 37. Nd2
{[%clk 0:00:43.3]} 37... Nxd3 {[%clk 0:00:37]} 38. Qxd3 {[%clk 0:00:41.8]} 38...
Bd7 {[%clk 0:00:29.2]} 39. Ne4 {[%clk 0:00:40.5]} 39... Qf5 {[%clk 0:00:25.3]}
40. f3 {[%clk 0:00:41]} 40... Ra5 {[%clk 0:00:24.4]} 41. Qd4 {[%clk 0:00:41.5]}
41... Bc6 {[%clk 0:00:09.6]} 42. Qb6 {[%clk 0:00:35.4]} 42... Bxe4+ {[%clk
0:00:10.6]} 43. Ka1 {[%clk 0:00:36.7]} 43... Qc8 {[%clk 0:00:10.8]} 44. Qxa5
{[%clk 0:00:35.6]} 44... Bd3 {[%clk 0:00:12.3]} 45. Qd5+ {[%clk 0:00:36.4]} 1-0

[Event "*** Titled Tuesday Blitz"]
[Site "Chess.com"]
[Date "2018.08.07"]
[Round "1"]
[White "juniortay"]
[Black "OparinGrigoriy"]
[Result "0-1"]
[WhiteElo "2406"]
[BlackElo "2886"]
[TimeControl "180+2"]
[EndTime "13:08:40 PDT"]
[Termination "OparinGrigoriy won by resignation"]

1. e4 {[%clk 0:03:01.9]} 1... e5 {[%clk 0:02:56.1]} 2. Nc3 {[%clk 0:03:02.3]}
2... Nc6 {[%clk 0:02:57.3]} 3. Bc4 {[%clk 0:03:03.2]} 3... Bc5 {[%clk
0:02:46.9]} 4. Qg4 {[%clk 0:03:03.2]} 4... Kf8 {[%clk 0:02:00.2]} 5. Qf3 {[%clk
0:03:03.7]} 5... Nf6 {[%clk 0:01:58.6]} 6. Nge2 {[%clk 0:03:03.1]} 6... d6
{[%clk 0:01:57.3]} 7. d3 {[%clk 0:02:58.2]} 7... Nb4 {[%clk 0:01:52.2]} 8. O-O
{[%clk 0:02:50.3]} 8... Nxc2 {[%clk 0:01:50.8]} 9. Rb1 {[%clk 0:02:50]} 9... Nd4
{[%clk 0:01:49.7]} 10. Nxd4 {[%clk 0:02:50.5]} 10... Bxd4 {[%clk 0:01:49.5]} 11.
Be3 {[%clk 0:02:40.4]} 11... Bb6 {[%clk 0:01:39.4]} 12. Qg3 {[%clk 0:02:28.5]}
12... Be6 {[%clk 0:01:09.1]} 13. Bxe6 {[%clk 0:02:26]} 13... fxe6 {[%clk
0:01:09.7]} 14. f4 {[%clk 0:02:27.4]} 14... exf4 {[%clk 0:01:07.9]} 15. Rxf4
{[%clk 0:02:27.5]} 15... e5 {[%clk 0:01:08.4]} 16. Rf5 {[%clk 0:02:24.3]} 16...
c6 {[%clk 0:01:07.3]} 17. Kh1 {[%clk 0:02:17.2]} 17... Bxe3 {[%clk 0:01:06]} 18.
Qxe3 {[%clk 0:02:17.9]} 18... Kg8 {[%clk 0:01:06.7]} 19. Rbf1 {[%clk 0:02:15.4]}
19... Qe7 {[%clk 0:01:07.2]} 20. g4 {[%clk 0:01:59.2]} 20... h6 {[%clk
0:00:58.4]} 21. g5 {[%clk 0:01:53.7]} 21... hxg5 {[%clk 0:00:58.5]} 22. Rxg5
{[%clk 0:01:52.3]} 22... Rf8 {[%clk 0:00:58.4]} 23. Rfg1 {[%clk 0:01:53]} 23...
Rh7 {[%clk 0:00:57.4]} 24. Ne2 {[%clk 0:01:48.3]} 24... Nh5 {[%clk 0:00:51.3]}
25. Qxa7 {[%clk 0:01:36.7]} 25... Nf4 {[%clk 0:00:52.2]} 26. Qe3 {[%clk
0:01:29.4]} 26... Nh3 {[%clk 0:00:51]} 27. R5g3 {[%clk 0:01:16.5]} 27... Nxg1
{[%clk 0:00:43.1]} 28. Qxg1 {[%clk 0:01:17.2]} 28... Qf7 {[%clk 0:00:43.2]} 29.
Qe3 {[%clk 0:01:02.3]} 29... Qf1+ {[%clk 0:00:40.1]} 30. Ng1 {[%clk 0:01:02.2]}
30... Qf2 {[%clk 0:00:31.2]} 31. Rh3 {[%clk 0:00:51.3]} 31... Qxe3 {[%clk
0:00:29.4]} 32. Rxe3 {[%clk 0:00:53.2]} 32... Rf2 {[%clk 0:00:30.7]} 33. h3
{[%clk 0:00:52.4]} 33... Rxb2 {[%clk 0:00:31.7]} 34. a4 {[%clk 0:00:47.8]} 34...
Ra2 {[%clk 0:00:31]} 35. Ne2 {[%clk 0:00:48.1]} 35... Rxa4 {[%clk 0:00:30.8]}
36. Kg2 {[%clk 0:00:49.3]} 36... Ra2 {[%clk 0:00:31.2]} 37. Kg3 {[%clk
0:00:50.3]} 37... Rh6 {[%clk 0:00:30.5]} 38. h4 {[%clk 0:00:48.9]} 38... Rg6+
{[%clk 0:00:31.3]} 39. Kh3 {[%clk 0:00:50.3]} 39... Rf6 {[%clk 0:00:29.7]} 40.
Ng3 {[%clk 0:00:49.9]} 40... Raf2 {[%clk 0:00:28.2]} 41. h5 {[%clk 0:00:48.6]}
41... R6f3 {[%clk 0:00:27.8]} 42. Re1 {[%clk 0:00:48.9]} 42... Rxd3 {[%clk
0:00:28.6]} 43. Kh4 {[%clk 0:00:48.4]} 43... Rh2+ {[%clk 0:00:29.3]} 44. Kg4
{[%clk 0:00:48.7]} 44... Rg2 {[%clk 0:00:31.2]} 45. Kh4 {[%clk 0:00:49.7]} 45...
Rdxg3 {[%clk 0:00:30.4]} 46. Rf1 {[%clk 0:00:43.9]} 46... Rg4+ {[%clk
0:00:27.3]} 47. Kh3 {[%clk 0:00:44.9]} 47... Rf4 {[%clk 0:00:28.6]} 0-1